[Event "21st Dubai Open 2019"]
[Site "Dubai"]
[Date "2019.04.09"]
[Round "9.3"]
[White "Abdusattorov, Nodirbek"]
[Black "Mchedlishvili, Mikheil"]
[Result "1/2-1/2"]
[ECO "B13"]
[WhiteElo "2578"]
[BlackElo "2610"]
[Annotator "ChessBase"]
[PlyCount "37"]
[EventDate "2019.04.01"]
[EventType "swiss"]
[EventCountry "UAE"]
[SourceTitle "playchess.com"]
[Source "ChessBase"]
[SourceQuality "1"]
[TimeControl "5400+30"]

1. e4 {[%emt 0:00:00]} c6 {[%emt 0:00:04]} 2. d4 {[%emt 0:00:08]} d5 {[%emt 0:00:07]} 3. exd5 {[%emt 0:00:37]} cxd5 {[%emt 0:00:11]} 4. Nf3 {[%emt 0:00:12]} Nf6 {[%emt 0:01:02]} 5. Ne5 {[%emt 0:00:45]} g6 {[%emt 0:00:49]} 6. Bb5+ {[%emt 0:02:14]} Nbd7 {[%emt 0:00:54]} 7. O-O {[%emt 0:01:03]} Bg7 {[%emt 0:00:49]} 8. Re1 {[%emt 0:02:38]} O-O {[%emt 0:01:19]} 9. Nc3 {[%emt 0:02:46]} e6 {[%emt 0:08:28]} 10. Bf1 {[%emt 0:05:03]} a6 {[%emt 0:15:34]} 11. Bf4 {[%emt 0:03:26]} Nh5 {[%emt 0:02:12]} 12. Nxd7 {[%emt 0:09:26]} Bxd7 {[%emt 0:01:56]} 13. Be5 {[%emt 0:04:20]} Rc8 {[%emt 0:01:52]} 14. Bxg7 {[%emt 0:05:50]} Nxg7 {[%emt 0:01:13]} 15. Ne2 {[%emt 0:00:08]} Ba4 {[%emt 0:07:01]} 16. Nc3 {[%emt 0:03:10]} Bd7 {[%emt 0:03:59]} 17. Ne2 {[%emt 0:02:16]} Ba4 {[%emt 0:14:39]} 18. Nc3 {[%emt 0:00:35]} Bd7 {[%emt 0:00:48]} 19. Ne2 {[%emt 0:05:30]} 1/2-1/2

[Event "21st Dubai Open 2019"]
[Site "Dubai"]
[Date "2019.04.09"]
[Round "9.5"]
[White "Tabatabaei, M.amin"]
[Black "Sanal, Vahap"]
[Result "0-1"]
[ECO "C54"]
[WhiteElo "2612"]
[BlackElo "2513"]
[Annotator "ChessBase"]
[PlyCount "96"]
[EventDate "2019.04.01"]
[EventType "swiss"]
[EventCountry "UAE"]
[SourceTitle "playchess.com"]
[Source "ChessBase"]
[SourceQuality "1"]
[TimeControl "5400+30"]

1. e4 {[%emt 0:00:00]} e5 {[%emt 0:02:03]} 2. Nf3 {[%emt 0:00:00]} Nc6 {[%emt 0:01:07]} 3. Bc4 {[%emt 0:00:00]} Bc5 {[%emt 0:00:12]} 4. c3 {[%emt 0:00:09]} Nf6 {[%emt 0:00:09]} 5. d4 {[%emt 0:00:41]} exd4 {[%emt 0:01:14]} 6. e5 {[%emt 0:00:12]} d5 {[%emt 0:00:45]} 7. Bb5 {[%emt 0:00:11]} Ne4 {[%emt 0:00:14]} 8. cxd4 {[%emt 0:00:06]} Bb6 {[%emt 0:01:00]} 9. Nc3 {[%emt 0:00:07]} O-O {[%emt 0:00:24]} 10. Be3 {[%emt 0:00:11]} Bg4 {[%emt 0:02:09]} 11. h3 {[%emt 0:00:19]} Bh5 {[%emt 0:01:03]} 12. Qc2 {[%emt 0:00:14]} Bg6 {[%emt 0:04:26]} 13. Qb3 {[%emt 0:00:15]} Ne7 {[%emt 0:00:30]} 14. O-O {[%emt 0:00:13]} c6 {[%emt 0:00:31]} 15. Bd3 {[%emt 0:00:08]} Nd2 {[%emt 0:01:17]} 16. Nxd2 {[%emt 0:00:11]} Bxd3 {[%emt 0:00:11]} 17. Rfe1 {[%emt 0:00:09]} Bg6 {[%emt 0:06:04]} 18. Na4 {[%emt 0:00:10]} Nf5 {[%emt 0:06:15]} 19. Qc3 {[%emt 0:00:20]} h6 {[%emt 0:15:17]} 20. Rac1 {[%emt 0:07:10]} f6 {[%emt 0:06:34]} 21. Nf3 {[%emt 0:00:39]} Nxe3 {[%emt 0:02:02]} 22. Rxe3 {[%emt 0:00:32]} Be4 {[%emt 0:00:38]} 23. Nxb6 {[%emt 0:05:30]} axb6 {[%emt 0:00:31]} 24. Nd2 {[%emt 0:00:15]} fxe5 {[%emt 0:05:17]} 25. dxe5 {[%emt 0:05:42]} Bg6 {[%emt 0:00:32]} 26. Rg3 {[%emt 0:01:50]} Bh7 {[%emt 0:02:55]} 27. a3 {[%emt 0:01:10]} Kh8 {[%emt 0:02:09]} 28. b4 {[%emt 0:01:50]} d4 {[%emt 0:01:36]} 29. Qc4 {[%emt 0:03:23]} b5 {[%emt 0:06:17]} 30. Qc5 {[%emt 0:03:43]} d3 {[%emt 0:09:14]} 31. e6 {[%emt 0:17:24]} Rf5 {[%emt 0:02:04]} 32. Qe3 {[%emt 0:02:33]} Qe7 {[%emt 0:04:32]} 33. Re1 {[%emt 0:08:46]} Rxa3 {[%emt 0:04:14]} 34. Nf3 {[%emt 0:02:24]} Rf6 {[%emt 0:00:27]} 35. Nd4 {[%emt 0:07:39]} Ra8 {[%emt 0:00:28]} 36. Rg4 {[%emt 0:01:16]} Re8 {[%emt 0:00:35]} 37. h4 {[%emt 0:03:34]} Qxb4 {[%emt 0:01:07]} 38. f3 {[%emt 0:00:45]} Qe7 {[%emt 0:02:14]} 39. Rf4 {[%emt 0:01:39]} c5 {[%emt 0:03:29]} 40. Nxb5 {[%emt 0:00:13]} Rxe6 {[%emt 0:00:39]} 41. Qxe6 {[%emt 0:00:12]} Qxe6 {[%emt 0:00:02]} 42. Rxe6 {[%emt 0:00:13]} Rxe6 {[%emt 0:00:04]} 43. Rf8+ {[%emt 0:00:05]} Bg8 {[%emt 0:00:06]} 44. Rd8 {[%emt 0:00:21]} c4 {[%emt 0:00:12]} 45. f4 {[%emt 0:01:10]} Rb6 {[%emt 0:02:01]} 46. Nc3 {[%emt 0:00:56]} Rb3 {[%emt 0:00:32]} 47. Ne4 {[%emt 0:00:05]} c3 {[%emt 0:01:00]} 48. Kf2 {[%emt 0:01:33]} c2 {[%emt 0:00:10]} 0-1

[Event "21st Dubai Open 2019"]
[Site "Dubai"]
[Date "2019.04.09"]
[Round "9.10"]
[White "Deepan Chakkravarthy J."]
[Black "Yilmaz, Mustafa"]
[Result "1-0"]
[ECO "B23"]
[WhiteElo "2534"]
[BlackElo "2631"]
[Annotator "ChessBase"]
[PlyCount "107"]
[EventDate "2019.04.01"]
[EventType "swiss"]
[EventCountry "UAE"]
[SourceTitle "playchess.com"]
[Source "ChessBase"]
[SourceQuality "1"]
[TimeControl "5400+30"]

1. e4 {[%emt 0:00:00]} c5 {[%emt 0:00:00]} 2. Nc3 {[%emt 0:00:19]} d6 {[%emt 0:00:00]} 3. d4 {[%emt 0:00:31]} cxd4 {[%emt 0:00:00]} 4. Qxd4 {[%emt 0:00:03]} Nc6 {[%emt 0:00:21]} 5. Qd2 {[%emt 0:00:06]} g6 {[%emt 0:00:33]} 6. b3 {[%emt 0:00:10]} Bh6 {[%emt 0:00:38]} 7. f4 {[%emt 0:00:08]} Nf6 {[%emt 0:00:46]} 8. Bb2 {[%emt 0:00:19]} O-O {[%emt 0:00:30]} 9. O-O-O {[%emt 0:00:12]} a5 {[%emt 0:00:16]} 10. a4 {[%emt 0:00:06]} e5 {[%emt 0:00:58]} 11. g3 {[%emt 0:00:09]} exf4 {[%emt 0:01:08]} 12. gxf4 {[%emt 0:05:32]} Nh5 {[%emt 0:00:54]} 13. Nge2 {[%emt 0:04:49]} Qh4 {[%emt 0:00:06]} 14. Nd5 {[%emt 0:08:35]} Be6 {[%emt 0:00:05]} 15. Kb1 {[%emt 0:06:53]} Bxd5 {[%emt 0:10:46]} 16. exd5 {[%emt 0:27:30]} Ne5 {[%emt 0:04:24]} 17. Qd4 {[%emt 0:00:37]} Nxf4 {[%emt 0:04:17]} 18. Qb6 {[%emt 0:05:44]} Qe7 {[%emt 0:17:18]} 19. Ng3 {[%emt 0:00:25]} f5 {[%emt 0:11:23]} 20. h4 {[%emt 0:00:25]} Bg7 {[%emt 0:08:58]} 21. Re1 {[%emt 0:11:13]} Nxd5 {[%emt 0:04:23]} 22. Qd4 {[%emt 0:03:20]} Nc7 {[%emt 0:06:20]} 23. h5 {[%emt 0:02:13]} Rf7 {[%emt 0:03:22]} 24. hxg6 {[%emt 0:02:36]} hxg6 {[%emt 0:00:02]} 25. Bc4 {[%emt 0:04:16]} Ne6 {[%emt 0:07:51]} 26. Qd5 {[%emt 0:00:11]} Re8 {[%emt 0:00:22]} 27. Bb5 {[%emt 0:12:42]} Rc8 {[%emt 0:01:10]} 28. Qg2 {[%emt 0:01:23]} Qg5 {[%emt 0:01:22]} 29. Qh2 {[%emt 0:00:42]} Kf8 {[%emt 0:01:11]} 30. Qf2 {[%emt 0:02:39]} Nc5 {[%emt 0:01:23]} 31. Rh7 {[%emt 0:00:40]} f4 {[%emt 0:02:29]} 32. Ne2 {[%emt 0:00:35]} Ne4 {[%emt 0:04:00]} 33. Qd4 {[%emt 0:00:16]} Qf5 {[%emt 0:02:38]} 34. Nxf4 {[%emt 0:00:34]} Qxf4 {[%emt 0:05:06]} 35. Rxe4 {[%emt 0:00:19]} Qf6 {[%emt 0:00:01]} 36. Qd1 {[%emt 0:01:12]} Kg8 {[%emt 0:00:54]} 37. Reh4 {[%emt 0:00:21]} g5 {[%emt 0:01:54]} 38. Rh1 {[%emt 0:00:13]} Qg6 {[%emt 0:00:38]} 39. Bd3 {[%emt 0:00:06]} Qe6 {[%emt 0:00:13]} 40. Qh5 {[%emt 0:00:07]} Qf6 {[%emt 0:00:28]} 41. Be4 {[%emt 0:01:41]} Rc5 {[%emt 0:00:20]} 42. Bxb7 {[%emt 0:00:37]} g4 {[%emt 0:00:58]} 43. Be4 {[%emt 0:00:15]} Kf8 {[%emt 0:00:21]} 44. Qh2 {[%emt 0:00:23]} Qf4 {[%emt 0:00:25]} 45. Qe2 {[%emt 0:00:18]} g3 {[%emt 0:00:36]} 46. Qa6 {[%emt 0:00:10]} Qxe4 {[%emt 0:00:36]} 47. Qxd6+ {[%emt 0:00:05]} Kg8 {[%emt 0:00:02]} 48. Qxc5 {[%emt 0:00:59]} g2 {[%emt 0:00:30]} 49. Qc8+ {[%emt 0:00:07]} Bf8 {[%emt 0:00:15]} 50. Rh8+ {[%emt 0:00:06]} Kg7 {[%emt 0:00:01]} 51. Bxe5+ {[%emt 0:00:19]} Qxe5 {[%emt 0:00:10]} 52. Qg4+ {[%emt 0:00:41]} Kf6 {[%emt 0:00:01]} 53. Qxg2 {[%emt 0:00:12]} Bg7 {[%emt 0:00:01]} 54. Qc6+ {[%emt 0:00:18]} 1-0

[Event "21st Dubai Open 2019"]
[Site "Dubai"]
[Date "2019.04.09"]
[Round "9.12"]
[White "Haug, Johannes"]
[Black "Santos Ruiz, Miguel"]
[Result "1/2-1/2"]
[ECO "B51"]
[WhiteElo "2424"]
[BlackElo "2555"]
[Annotator "ChessBase"]
[PlyCount "62"]
[EventDate "2019.04.01"]
[EventType "swiss"]
[EventCountry "UAE"]
[SourceTitle "playchess.com"]
[Source "ChessBase"]
[SourceQuality "1"]
[TimeControl "5400+30"]

1. e4 {[%emt 0:00:00]} c5 {[%emt 0:00:00]} 2. Nf3 {[%emt 0:00:00]} d6 {[%emt 0:00:00]} 3. Bb5+ {[%emt 0:00:00]} Nd7 {[%emt 0:00:00]} 4. d4 {[%emt 0:00:10]} cxd4 {[%emt 0:00:00]} 5. Qxd4 {[%emt 0:00:06]} a6 {[%emt 0:00:00]} 6. Bxd7+ {[%emt 0:00:08]} Bxd7 {[%emt 0:00:00]} 7. O-O {[%emt 0:00:05]} e5 {[%emt 0:00:00]} 8. Qd3 {[%emt 0:00:03]} Qc7 {[%emt 0:00:00]} 9. Nc3 {[%emt 0:03:41]} Rc8 {[%emt 0:00:11]} 10. a4 {[%emt 0:13:35]} h6 {[%emt 0:10:27]} 11. Rd1 {[%emt 0:00:54]} Be6 {[%emt 0:01:48]} 12. Nd2 {[%emt 0:01:46]} g6 {[%emt 0:00:04]} 13. Nf1 {[%emt 0:02:05]} f5 {[%emt 0:00:30]} 14. Ne3 {[%emt 0:08:54]} Ne7 {[%emt 0:23:41]} 15. Bd2 {[%emt 0:22:51]} f4 {[%emt 0:17:07]} 16. Ned5 {[%emt 0:12:26]} Nxd5 {[%emt 0:08:12]} 17. Nxd5 {[%emt 0:00:15]} Qxc2 {[%emt 0:00:06]} 18. Qf3 {[%emt 0:00:02]} Bxd5 {[%emt 0:04:30]} 19. Rac1 {[%emt 0:01:11]} Qxe4 {[%emt 0:00:15]} 20. Rxc8+ {[%emt 0:01:14]} Kd7 {[%emt 0:00:03]} 21. Qxe4 {[%emt 0:08:47]} Bxe4 {[%emt 0:00:05]} 22. Ra8 {[%emt 0:00:04]} Bc6 {[%emt 0:09:29]} 23. Bb4 {[%emt 0:04:44]} Bxa4 {[%emt 0:01:22]} 24. Rd2 {[%emt 0:01:45]} Ke6 {[%emt 0:02:25]} 25. Bxd6 {[%emt 0:00:37]} Bg7 {[%emt 0:00:10]} 26. Rxh8 {[%emt 0:00:57]} Bxh8 {[%emt 0:00:08]} 27. f3 {[%emt 0:00:39]} Bc6 {[%emt 0:01:39]} 28. Bc5 {[%emt 0:01:54]} Bd5 {[%emt 0:02:19]} 29. Kf2 {[%emt 0:03:38]} h5 {[%emt 0:01:44]} 30. h4 {[%emt 0:08:39]} Bf6 {[%emt 0:00:28]} 31. g3 {[%emt 0:00:04]} fxg3+ {[%emt 0:00:09]} 1/2-1/2

[Event "21st Dubai Open 2019"]
[Site "Dubai"]
[Date "2019.04.09"]
[Round "9.13"]
[White "Sundararajan, Kidambi"]
[Black "Bellahcene, Bilel"]
[Result "1/2-1/2"]
[ECO "E01"]
[WhiteElo "2413"]
[BlackElo "2538"]
[Annotator "ChessBase"]
[PlyCount "78"]
[EventDate "2019.04.01"]
[EventType "swiss"]
[EventCountry "UAE"]
[SourceTitle "playchess.com"]
[Source "ChessBase"]
[SourceQuality "1"]
[TimeControl "5400+30"]

1. d4 {[%emt 0:00:00]} Nf6 {[%emt 0:00:00]} 2. c4 {[%emt 0:00:00]} e6 {[%emt 0:00:00]} 3. g3 {[%emt 0:00:04]} d5 {[%emt 0:00:07]} 4. Bg2 {[%emt 0:00:10]} dxc4 {[%emt 0:01:28]} 5. Qa4+ {[%emt 0:00:20]} c6 {[%emt 0:00:42]} 6. Qxc4 {[%emt 0:00:12]} b5 {[%emt 0:00:44]} 7. Qd3 {[%emt 0:02:04]} Bb7 {[%emt 0:01:25]} 8. Be3 {[%emt 0:05:46]} Nbd7 {[%emt 0:01:10]} 9. Nh3 {[%emt 0:02:53]} Qb6 {[%emt 0:11:11]} 10. O-O {[%emt 0:15:22]} c5 {[%emt 0:01:13]} 11. dxc5 {[%emt 0:01:16]} Bxc5 {[%emt 0:00:05]} 12. Bxb7 {[%emt 0:03:46]} Qxb7 {[%emt 0:00:03]} 13. Bxc5 {[%emt 0:03:46]} Nxc5 {[%emt 0:00:03]} 14. Qe3 {[%emt 0:00:47]} Rc8 {[%emt 0:03:28]} 15. Rc1 {[%emt 0:04:43]} Nd5 {[%emt 0:00:29]} 16. Qd4 {[%emt 0:12:29]} O-O {[%emt 0:01:16]} 17. Nd2 {[%emt 0:07:34]} Qb6 {[%emt 0:11:44]} 18. Ne4 {[%emt 0:05:09]} Nxe4 {[%emt 0:16:15]} 19. Qxe4 {[%emt 0:00:06]} Nf6 {[%emt 0:00:05]} 20. Qf4 {[%emt 0:00:50]} h6 {[%emt 0:09:17]} 21. Rxc8 {[%emt 0:03:57]} Rxc8 {[%emt 0:00:58]} 22. Rc1 {[%emt 0:00:11]} Rd8 {[%emt 0:00:01]} 23. Qb4 {[%emt 0:04:30]} e5 {[%emt 0:11:40]} 24. Qe7 {[%emt 0:01:53]} Qd4 {[%emt 0:02:20]} 25. Rc7 {[%emt 0:10:02]} Qd1+ {[%emt 0:02:56]} 26. Kg2 {[%emt 0:00:07]} Qd5+ {[%emt 0:00:01]} 27. f3 {[%emt 0:02:12]} Re8 {[%emt 0:11:52]} 28. Qc5 {[%emt 0:00:52]} Qd2 {[%emt 0:01:00]} 29. Qc2 {[%emt 0:01:25]} Rd8 30. Nf2 {[%emt 0:04:24]} Qxc2 {[%emt 0:09:14]} 31. Rxc2 {[%emt 0:00:06]} Nd5 {[%emt 0:00:02]} 32. Rc5 {[%emt 0:00:25]} Ne3+ {[%emt 0:01:53]} 33. Kh3 {[%emt 0:00:09]} f6 {[%emt 0:01:31]} 34. Rc3 {[%emt 0:02:22]} Nf5 {[%emt 0:01:51]} 35. e4 {[%emt 0:00:48]} Nd4 {[%emt 0:00:16]} 36. Kg2 {[%emt 0:00:25]} a6 {[%emt 0:00:40]} 37. Ng4 {[%emt 0:03:29]} b4 {[%emt 0:00:38]} 38. Rc4 {[%emt 0:01:03]} b3 {[%emt 0:00:23]} 39. axb3 {[%emt 0:00:16]} Nxb3 {[%emt 0:00:19]} 1/2-1/2

[Event "21st Dubai Open 2019"]
[Site "Dubai"]
[Date "2019.04.09"]
[Round "9.15"]
[White "Dhulipalla Bala Chandra Prasa"]
[Black "Yeoh, Li Tian"]
[Result "1/2-1/2"]
[ECO "E68"]
[WhiteElo "2384"]
[BlackElo "2522"]
[Annotator "ChessBase"]
[PlyCount "80"]
[EventDate "2019.04.01"]
[EventType "swiss"]
[EventCountry "UAE"]
[SourceTitle "playchess.com"]
[Source "ChessBase"]
[SourceQuality "1"]
[TimeControl "5400+30"]

1. d4 {[%emt 0:00:00]} Nf6 {[%emt 0:00:00]} 2. Nf3 {[%emt 0:02:25]} g6 {[%emt 0:00:00]} 3. g3 {[%emt 0:00:27]} Bg7 {[%emt 0:00:36]} 4. Bg2 {[%emt 0:00:07]} O-O {[%emt 0:00:11]} 5. c4 {[%emt 0:00:25]} d6 {[%emt 0:02:56]} 6. O-O {[%emt 0:00:11]} Nbd7 {[%emt 0:02:24]} 7. Nc3 {[%emt 0:00:06]} e5 {[%emt 0:00:55]} 8. e4 {[%emt 0:00:14]} exd4 {[%emt 0:00:41]} 9. Nxd4 {[%emt 0:00:05]} c6 {[%emt 0:00:10]} 10. h3 {[%emt 0:02:35]} Re8 {[%emt 0:00:13]} 11. Re1 {[%emt 0:04:04]} a5 {[%emt 0:00:35]} 12. b3 {[%emt 0:13:39]} Nc5 {[%emt 0:01:46]} 13. Bf4 {[%emt 0:04:29]} h6 {[%emt 0:11:47]} 14. Qc2 {[%emt 0:13:10]} Nh5 {[%emt 0:29:32]} 15. Be3 {[%emt 0:00:53]} f5 {[%emt 0:00:39]} 16. exf5 {[%emt 0:17:43]} Rxe3 {[%emt 0:01:31]} 17. fxe3 {[%emt 0:01:35]} Nxg3 {[%emt 0:00:09]} 18. fxg6 {[%emt 0:02:37]} Qh4 {[%emt 0:00:28]} 19. Rad1 {[%emt 0:26:27]} Bxh3 {[%emt 0:08:27]} 20. Bxh3 {[%emt 0:00:03]} Qxh3 {[%emt 0:00:07]} 21. Qg2 {[%emt 0:00:34]} Qh4 {[%emt 0:03:21]} 22. Nce2 {[%emt 0:01:47]} Nce4 {[%emt 0:22:19]} 23. Nxg3 {[%emt 0:00:24]} Nxg3 {[%emt 0:00:05]} 24. Nf3 {[%emt 0:03:35]} Qg4 {[%emt 0:00:08]} 25. Kh2 {[%emt 0:02:38]} Rf8 {[%emt 0:01:12]} 26. Qxg3 {[%emt 0:01:16]} Qxf3 {[%emt 0:00:07]} 27. Qxf3 {[%emt 0:00:26]} Rxf3 {[%emt 0:00:05]} 28. c5 {[%emt 0:00:37]} d5 {[%emt 0:07:59]} 29. e4 {[%emt 0:00:34]} Bc3 {[%emt 0:00:08]} 30. exd5 {[%emt 0:01:02]} Bxe1 {[%emt 0:00:04]} 31. dxc6 {[%emt 0:00:06]} bxc6 {[%emt 0:04:11]} 32. Rxe1 {[%emt 0:00:02]} Kg7 {[%emt 0:00:08]} 33. Re6 {[%emt 0:00:42]} Rf6 {[%emt 0:00:18]} 34. Re7+ {[%emt 0:00:53]} Kxg6 {[%emt 0:00:05]} 35. Ra7 {[%emt 0:00:01]} Rf2+ {[%emt 0:00:55]} 36. Kg1 {[%emt 0:00:02]} Rxa2 {[%emt 0:00:08]} 37. Ra6 {[%emt 0:00:06]} Kf5 {[%emt 0:00:53]} 38. Rxc6 {[%emt 0:00:14]} Rb2 {[%emt 0:00:03]} 39. Ra6 {[%emt 0:00:28]} Rxb3 {[%emt 0:00:08]} 40. Rxa5 {[%emt 0:00:05]} Ke5 1/2-1/2

[Event "21st Dubai Open 2019"]
[Site "Dubai"]
[Date "2019.04.09"]
[Round "9.16"]
[White "Raghunandan, Kaumandur Srihari"]
[Black "Chanda, Sandipan"]
[Result "1-0"]
[ECO "B12"]
[WhiteElo "2370"]
[BlackElo "2521"]
[Annotator "ChessBase"]
[PlyCount "103"]
[EventDate "2019.04.01"]
[EventType "swiss"]
[EventCountry "UAE"]
[SourceTitle "playchess.com"]
[Source "ChessBase"]
[SourceQuality "1"]
[TimeControl "5400+30"]

1. e4 {[%emt 0:00:00]} c6 {[%emt 0:00:00]} 2. d4 {[%emt 0:00:00]} d5 {[%emt 0:00:00]} 3. e5 {[%emt 0:00:00]} c5 {[%emt 0:00:00]} 4. dxc5 {[%emt 0:00:06]} e6 {[%emt 0:00:06]} 5. a3 {[%emt 0:01:01]} Bxc5 {[%emt 0:00:09]} 6. Nf3 {[%emt 0:00:04]} Ne7 {[%emt 0:00:13]} 7. b4 {[%emt 0:01:03]} Bb6 {[%emt 0:00:06]} 8. Bb2 {[%emt 0:00:11]} Nbc6 {[%emt 0:01:12]} 9. Bd3 {[%emt 0:00:15]} Ng6 {[%emt 0:00:15]} 10. O-O {[%emt 0:00:12]} Nf4 {[%emt 0:00:08]} 11. c4 {[%emt 0:00:20]} Bc7 {[%emt 0:00:07]} 12. Re1 {[%emt 0:14:41]} dxc4 {[%emt 0:00:14]} 13. Bxc4 {[%emt 0:00:13]} Qxd1 {[%emt 0:00:08]} 14. Rxd1 {[%emt 0:00:07]} Ng6 {[%emt 0:00:08]} 15. Re1 {[%emt 0:00:41]} O-O {[%emt 0:00:08]} 16. Nbd2 {[%emt 0:02:50]} Rd8 {[%emt 0:00:08]} 17. Nb3 {[%emt 0:10:52]} a5 {[%emt 0:03:32]} 18. b5 {[%emt 0:00:33]} a4 {[%emt 0:02:32]} 19. Nc5 {[%emt 0:00:17]} Bb6 {[%emt 0:04:52]} 20. Ne4 {[%emt 0:01:31]} Na5 {[%emt 0:02:41]} 21. Bf1 {[%emt 0:01:16]} Bd7 {[%emt 0:11:48]} 22. Nd6 {[%emt 0:05:49]} Bc5 {[%emt 0:13:27]} 23. Rad1 {[%emt 0:02:27]} Bxd6 {[%emt 0:03:52]} 24. Rxd6 {[%emt 0:05:54]} Be8 {[%emt 0:00:28]} 25. Re4 {[%emt 0:25:00]} Rxd6 {[%emt 0:01:58]} 26. exd6 {[%emt 0:00:06]} Nb3 {[%emt 0:00:13]} 27. Rc4 {[%emt 0:05:00]} Bxb5 {[%emt 0:25:16]} 28. Rc7 {[%emt 0:00:07]} Bxf1 {[%emt 0:00:39]} 29. d7 {[%emt 0:05:41]} Ne7 {[%emt 0:00:07]} 30. Kxf1 {[%emt 0:00:05]} Rd8 {[%emt 0:00:08]} 31. Nd4 {[%emt 0:18:08]} b6 {[%emt 0:00:27]} 32. Bc3 {[%emt 0:00:49]} Nc5 {[%emt 0:00:19]} 33. Bb4 {[%emt 0:00:18]} Kf8 {[%emt 0:00:19]} 34. Nc6 {[%emt 0:00:20]} Rxd7 {[%emt 0:03:48]} 35. Rxd7 {[%emt 0:00:05]} Nxd7 {[%emt 0:00:03]} 36. Bxe7+ {[%emt 0:00:07]} Ke8 {[%emt 0:00:12]} 37. Ke2 {[%emt 0:00:43]} Nb8 {[%emt 0:01:02]} 38. Nxb8 {[%emt 0:00:07]} Kxe7 {[%emt 0:00:04]} 39. Kd3 {[%emt 0:00:38]} Kd6 {[%emt 0:00:04]} 40. Kc4 {[%emt 0:00:08]} e5 {[%emt 0:00:14]} 41. Na6 {[%emt 0:00:28]} f5 {[%emt 0:00:18]} 42. Nb4 {[%emt 0:00:05]} g5 {[%emt 0:00:25]} 43. Kb5 {[%emt 0:01:35]} e4 {[%emt 0:00:13]} 44. Kxb6 {[%emt 0:00:12]} f4 {[%emt 0:00:55]} 45. Kb5 {[%emt 0:00:12]} Ke5 {[%emt 0:01:02]} 46. Kxa4 {[%emt 0:00:08]} f3 {[%emt 0:02:20]} 47. gxf3 {[%emt 0:00:23]} exf3 {[%emt 0:00:02]} 48. Kb3 {[%emt 0:00:10]} h5 {[%emt 0:00:21]} 49. Kc3 {[%emt 0:00:13]} h4 {[%emt 0:00:50]} 50. Kd3 {[%emt 0:00:50]} Kf4 {[%emt 0:00:09]} 51. a4 {[%emt 0:00:30]} g4 {[%emt 0:00:06]} 52. a5 {[%emt 0:00:20]} 1-0

[Event "21st Dubai Open 2019"]
[Site "Dubai"]
[Date "2019.04.09"]
[Round "9.19"]
[White "Sadhwani, Raunak"]
[Black "Assaubayeva, Bibisara"]
[Result "1/2-1/2"]
[ECO "D02"]
[WhiteElo "2475"]
[BlackElo "2381"]
[Annotator "ChessBase"]
[PlyCount "83"]
[EventDate "2019.04.01"]
[EventType "swiss"]
[EventCountry "UAE"]
[SourceTitle "playchess.com"]
[Source "ChessBase"]
[SourceQuality "1"]
[TimeControl "5400+30"]

1. d4 {[%emt 0:00:00]} d5 {[%emt 0:00:34]} 2. Nf3 {[%emt 0:00:00]} Nf6 {[%emt 0:00:09]} 3. Bf4 {[%emt 0:00:00]} Bf5 {[%emt 0:01:27]} 4. e3 {[%emt 0:01:35]} e6 {[%emt 0:00:14]} 5. Be2 {[%emt 0:00:14]} Bd6 {[%emt 0:02:55]} 6. Ne5 {[%emt 0:00:10]} Nfd7 {[%emt 0:06:12]} 7. g4 {[%emt 0:09:06]} Be4 {[%emt 0:01:27]} 8. f3 {[%emt 0:00:10]} Bg6 {[%emt 0:00:28]} 9. h4 {[%emt 0:01:58]} Bxe5 {[%emt 0:05:33]} 10. dxe5 {[%emt 0:00:07]} h5 {[%emt 0:00:53]} 11. Bg5 {[%emt 0:03:16]} f6 {[%emt 0:07:44]} 12. exf6 {[%emt 0:01:52]} gxf6 {[%emt 0:00:40]} 13. gxh5 {[%emt 0:00:20]} fxg5 {[%emt 0:04:18]} 14. hxg6 {[%emt 0:00:16]} gxh4 {[%emt 0:01:05]} 15. Qd4 {[%emt 0:11:23]} Qf6 {[%emt 0:02:14]} 16. Qb4 {[%emt 0:00:54]} b6 {[%emt 0:06:21]} 17. Nc3 {[%emt 0:00:17]} Nc5 {[%emt 0:13:20]} 18. Nb5 {[%emt 0:16:29]} Nc6 {[%emt 0:05:19]} 19. Qa3 {[%emt 0:00:13]} Kd7 {[%emt 0:04:30]} 20. O-O-O {[%emt 0:00:49]} a6 {[%emt 0:00:25]} 21. Nc3 {[%emt 0:12:06]} Qxg6 {[%emt 0:03:39]} 22. Rhg1 {[%emt 0:02:00]} Qh6 {[%emt 0:03:23]} 23. f4 {[%emt 0:03:30]} Kc8 {[%emt 0:05:43]} 24. b4 {[%emt 0:00:42]} Nb7 {[%emt 0:00:37]} 25. b5 {[%emt 0:00:53]} Ncd8 {[%emt 0:02:16]} 26. bxa6 {[%emt 0:04:51]} Nc5 {[%emt 0:00:12]} 27. Na4 {[%emt 0:01:57]} Ne4 {[%emt 0:03:39]} 28. Nc3 {[%emt 0:01:09]} Nc5 {[%emt 0:00:22]} 29. Na4 {[%emt 0:04:17]} Ne4 {[%emt 0:00:14]} 30. Bd3 {[%emt 0:06:12]} Qf8 {[%emt 0:02:53]} 31. Qb2 {[%emt 0:02:55]} Qf6 {[%emt 0:00:25]} 32. Bxe4 {[%emt 0:01:31]} Qxb2+ {[%emt 0:00:05]} 33. Kxb2 {[%emt 0:00:04]} dxe4 {[%emt 0:00:08]} 34. Nc3 {[%emt 0:00:02]} Rxa6 {[%emt 0:02:37]} 35. Nxe4 {[%emt 0:00:02]} Ra5 {[%emt 0:01:45]} 36. Rg5 {[%emt 0:01:11]} Rf5 {[%emt 0:01:12]} 37. Rxf5 {[%emt 0:03:55]} exf5 {[%emt 0:00:02]} 38. Ng5 {[%emt 0:00:00]} Re8 {[%emt 0:02:38]} 39. Re1 {[%emt 0:00:20]} Ne6 {[%emt 0:01:16]} 40. Nf3 {[%emt 0:00:01]} h3 {[%emt 0:02:01]} 41. Rh1 {[%emt 0:00:08]} Nc5 {[%emt 0:00:31]} 42. Ne5 {[%emt 0:04:20]} 1/2-1/2